bitfinex-derivatives/quotes_ETHF0:USTF0_20250518
["timestamp","ask_amount","ask_price","bid_price","bid_amount"]
[1747577317405,0.78816,2536.8,2536.7,1.7576]
[1747577317801,0.78808,2537.0,2536.7,2.54576]
[1747577318007,0.78808,2537.0,2536.8,1.9311]
[1747577318409,0.78808,2537.0,2536.8,2.71924]
[1747577318707,0.78808,2537.0,2536.8,1.9311]
[1747577319208,0.78811,2536.9,2536.8,4.9891]
[1747577320409,0.7881,2537.0,2536.8,5.77722]
[1747577320810,3.2078,2537.4,2536.9,3.2078]
[1747577321010,0.78803,2537.2,2537.0,2.53955]
[1747577321512,0.78804,2537.1,2537.0,2.53955]
[1747577321710,0.78804,2537.1,2537.0,1.7515]
[1747577322111,0.78804,2537.1,2537.0,4.8095]
[1747577322711,0.78804,2537.1,2537.0,5.59758]
[1747577323012,0.78801,2537.3,2537.1,0.78804]
[1747577323312,0.78801,2537.3,2537.2,1.7515]
[1747577324702,3.99577,2537.4,2537.2,2.53951]
[1747577325115,0.78799,2537.3,2537.2,1.7515]
[1747577325412,0.78799,2537.3,2537.1,3.84603]
[1747577325611,0.78802,2537.2,2537.1,3.84605]
[1747577325811,0.78802,2537.2,2537.1,3.058]
[1747577326313,0.78805,2537.1,2537.0,3.058]
[1747577328508,1.8666,2537.3,2537.0,3.058]
[1747577328708,0.78803,2537.2,2537.0,3.058]
[1747577329218,0.78803,2537.2,2537.0,3.84607]
[1747577329419,0.78801,2537.3,2537.0,3.84605]
[1747577329611,0.788,2537.3,2537.0,3.84608]
[1747577330010,0.78802,2537.2,2537.0,3.84608]
[1747577331521,0.78805,2537.1,2537.0,3.15018003]
[1747577332818,4.30655,2537.1,2537.0,3.15018003]
[1747577335018,24.07935,2537.1,2537.0,2.31630003]
[1747577335213,24.07935,2537.1,2537.0,0.09218003]
[1747577336320,24.07935,2537.1,2537.0,3e-08]
[1747577339419,7.51435,2537.1,2537.0,3e-08]
[1747577339617,19.07935,2537.1,2537.0,3e-08]
[1747577341024,22.22141684,2537.1,2537.0,3e-08]
[1747577342326,7.13791684,2537.1,2537.0,3.05800003]
[1747577342718,6.34986684,2537.1,2537.0,3.05800003]
[1747577343024,6.34986684,2537.1,2537.0,8.84608003]
[1747577343224,3.14206684,2537.1,2537.0,12.05388003]
[1747577343629,4.12767082,2537.1,2537.0,8.84608003]
[1747577344126,4.91572082,2537.1,2537.0,8.84608003]
[1747577344329,4.91572082,2537.1,2537.0,8.05800003]
[1747577344728,4.91572082,2537.1,2537.0,10.69368003]
[1747577344929,4.12767082,2537.1,2537.0,10.69368003]
[1747577345121,0.98560398,2537.1,2537.0,10.69368003]
[1747577345725,0.98560398,2537.1,2537.0,13.90148003]
[1747577347728,0.788,2537.3,2537.2,0.78802]
[1747577348132,3.2078,2537.5,2537.1,5.62762]
[1747577348323,0.78797,2537.4,2537.3,0.78797]
[1747577348524,3.2078,2537.5,2537.4,0.78795]
[1747577348725,3.2078,2537.8,2537.4,0.78793]
[1747577349022,0.98560398,2537.9,2537.5,14.6718]
[1747577349222,0.98560398,2537.9,2537.8,0.78783]
[1747577349623,0.98560398,2537.9,2537.8,5.78783]
[1747577350131,0.98560398,2537.9,2537.8,8.84583]
[1747577350430,3.14206684,2538.0,2537.9,0.7878]
[1747577350927,1.30792417,2538.2,2538.1,0.78774]
[1747577351429,1.30792417,2538.2,2538.0,0.78774]
[1747577351727,0.78774,2538.1,2537.9,7.60374823]
[1747577352029,2.09565417,2538.2,2538.1,0.78774]
[1747577352230,0.78774,2538.1,2538.0,0.78776]
[1747577352526,0.78774,2538.1,2537.9,3.058]
[1747577352728,0.78772,2538.2,2538.1,0.78773]
[1747577352925,0.78775,2538.1,2538.0,0.78776]
[1747577353125,0.78773,2538.2,2538.0,3.84574]
[1747577353331,5.1159,2538.7,2538.3,0.78765]
[1747577353627,0.78764,2538.4,2538.3,0.78765]
[1747577353827,0.78764,2538.4,2538.2,0.78768]
[1747577354037,3.2078,2538.7,2538.6,0.78758]
[1747577354232,3.14206684,2538.8,2538.4,3.2078]
[1747577354426,0.78755,2538.7,2538.6,0.78755]
[1747577354623,0.78753,2538.8,2538.7,0.78754]
[1747577355629,0.78754,2538.8,2538.7,0.78754]
[1747577356130,1.30792417,2539.0,2538.5,1.7564]
[1747577356331,0.78757,2538.7,2538.6,0.78756]
[1747577356532,1.30792417,2539.0,2538.7,0.78752]
[1747577356830,0.7875,2538.9,2538.8,0.78751]
[1747577357033,0.78756,2538.7,2538.6,0.78756]
[1747577357223,0.78751,2538.9,2538.5,1.7564]
[1747577357424,0.78751,2538.9,2538.8,0.78752]
[1747577357620,3.14206684,2539.3,2539.1,0.7874]
[1747577357927,3.2078,2539.5,2538.9,13.38773]
[1747577358233,0.78736,2539.3,2539.2,0.78738]
[1747577359134,16.3837,2539.8,2539.3,0.78735]
[1747577359430,16.3837,2539.8,2539.3,2.64545]
[1747577359627,3.2078,2539.8,2539.5,0.7873]
[1747577359829,0.78729,2539.6,2539.4,6.24237026]
[1747577360025,0.78726,2539.7,2539.5,0.78728]
[1747577360223,0.78726,2539.7,2539.6,2.56057]
[1747577360424,8.10206684,2540.1,2539.6,1.7733]
[1747577360625,0.78716,2540.0,2539.8,0.7872]
[1747577360827,3.14206684,2540.1,2539.9,2.64096]
[1747577361026,3.14206684,2540.1,2539.9,1.8538]
[1747577361221,0.78715,2540.0,2539.9,1.8538]
[1747577361428,0.78733,2539.4,2539.3,1.8581]
[1747577361934,3.99512,2539.5,2539.3,1.8581]
[1747577362129,0.78733,2539.4,2539.3,1.8581]
[1747577362329,3.058,2539.7,2539.3,2.64545]
[1747577362536,3.058,2539.7,2539.3,1.8581]
[1747577362732,4.8503,2539.7,2539.0,11.393]
[1747577362936,0.78746,2539.0,2538.9,3.2078]
[1747577363135,0.78745,2539.1,2538.9,3.2078]
[1747577363632,1.7923,2539.4,2539.0,0.78744]
[1747577363832,0.78734,2539.4,2538.9,3.2078]
[1747577364037,0.78737,2539.3,2539.1,0.7874]
[1747577364229,0.78737,2539.3,2539.1,0.78742]
[1747577364635,3.6391,2539.7,2538.9,3.2078]
[1747577364835,0.78744,2539.1,2539.0,1.8435]
[1747577365535,0.78743,2539.1,2539.0,1.8435]
[1747577365736,1.7503,2539.4,2539.0,1.8435]
[1747577365929,0.78741,2539.2,2539.0,1.8435]
[1747577366124,0.78743,2539.1,2539.0,3.6417]
[1747577366641,5.59564,2539.4,2539.1,0.78741]
[1747577366938,4.8083,2539.4,2539.0,1.7982]
[1747577367138,4.8083,2539.4,2539.1,1.8005]
[1747577367338,0.78738,2539.3,2539.1,1.8005]
[1747577367638,4.8083,2539.4,2539.1,2.58791]
[1747577367834,4.8083,2539.4,2539.1,1.8005]
[1747577368138,5.59565,2539.4,2539.2,1.8005]
[1747577368341,5.59566,2539.4,2539.2,1.8005]
[1747577368741,5.59566,2539.4,2539.2,2.58789]
[1747577368940,3.84535,2539.4,2539.2,1.8005]
[1747577369237,3.2078,2539.5,2539.4,0.78733]
[1747577369540,3.84528,2539.6,2539.4,0.78733]
[1747577369742,3.84528,2539.6,2539.5,1.8178]
[1747577369932,3.058,2539.6,2539.0,1.7982]
[1747577370133,3.058,2539.6,2539.2,1.8178]
[1747577370134,0.78736,2539.3,2539.2,1.8178]
[1747577371137,3.84536,2539.3,2539.2,1.8178]
[1747577371541,0.78746,2539.0,2538.9,5.856]
[1747577372133,0.78755,2538.7,2538.6,1.8178]
[1747577372335,0.78755,2538.7,2538.0,15.70532714]
[1747577372530,5.54136,2538.6,2538.0,17.44282714]
[1747577372733,0.78766,2538.4,2538.1,0.78772]
[1747577372936,2.63873,2538.5,2538.2,1.7375]
[1747577373144,3.5537,2538.5,2538.2,2.52518]
[1747577373437,0.78767,2538.3,2538.2,1.7375]
[1747577373638,0.78766,2538.4,2538.2,2.52518]
[1747577373836,0.78766,2538.4,2538.3,1.7375]
[1747577374239,0.78766,2538.4,2538.3,4.7955]
[1747577374539,2.49026,2538.4,2538.3,3.058]
[1747577374737,1.7026,2538.4,2538.3,3.058]
[1747577375441,2.65739,2538.6,2538.3,5.58317]
[1747577375641,1.8698,2538.6,2538.3,4.7955]
[1747577375943,0.78764,2538.4,2538.3,4.7955]
[1747577376142,0.78764,2538.4,2538.3,1.7375]
[1747577376442,1.8775,2538.5,2538.0,14.5398]
[1747577376644,0.78764,2538.4,2538.1,2.55752]
[1747577376842,0.78764,2538.4,2538.2,1.7698]
[1747577377043,1.8775,2538.5,2538.2,1.86198003]
[1747577377343,0.78767,2538.4,2538.2,1.86198003]
[1747577377537,0.78767,2538.3,2538.2,1.86198003]
[1747577379538,0.78766,2538.4,2538.2,2.64969003]
[1747577379734,0.78766,2538.4,2538.3,1.8308]
[1747577380135,0.78766,2538.4,2538.3,4.8888]
[1747577381141,0.78766,2538.4,2538.3,3.058]
[1747577382937,2.66514,2538.5,2538.3,4.3037]
[1747577383239,2.66514,2538.5,2538.3,5.09137]
[1747577383436,1.8775,2538.5,2538.3,4.3037]
[1747577383637,3.2078,2538.8,2538.7,0.78755]
[1747577384736,0.78748,2539.0,2538.8,0.7875]
[1747577384938,0.78748,2539.0,2538.9,1.7772]
[1747577385741,0.78743,2539.1,2538.5,40.8]
[1747577385939,0.78761,2538.5,2538.4,1.7589]
[1747577386842,0.78761,2538.5,2538.4,2.54654]
[1747577387042,0.78761,2538.5,2538.4,3.5361]
[1747577387538,0.7876,2538.6,2538.4,4.32373]
[1747577387745,4.29516,2538.7,2538.5,0.78759]
[1747577388042,4.29516,2538.7,2538.6,1.8051]
[1747577388444,3.2078,2538.8,2538.6,1.8051]
[1747577388643,3.2078,2538.8,2538.6,2.59267]
[1747577389148,0.78752,2538.8,2538.7,2.59265]
[1747577389545,0.78752,2538.8,2538.7,1.8051]
[1747577390742,0.78751,2538.9,2538.7,2.59263]
[1747577391045,0.78749,2538.9,2538.8,1.8362]
[1747577391746,0.78755,2538.7,2538.6,0.78757]
[1747577392135,0.78754,2538.8,2538.6,0.78757]
[1747577392648,0.78755,2538.7,2538.5,2.55149]
[1747577392946,0.78755,2538.7,2538.6,0.78758]
[1747577393147,3.84553,2538.8,2538.7,0.78755]
[1747577393541,0.78755,2538.7,2538.6,2.62376]
[1747577393843,0.78761,2538.5,2538.4,1.7589]
[1747577394043,0.78761,2538.5,2538.4,3.586]
[1747577394946,0.78751,2538.9,2538.7,0.78754]
[1747577395346,0.78751,2538.9,2538.8,1.8271]
[1747577396348,3.99523,2539.1,2538.9,0.78747]
[1747577396549,3.99523,2539.1,2539.0,3.5557]
[1747577397242,5.87123,2539.1,2539.0,3.5557]
[1747577398348,2.66343,2539.1,2539.0,3.5557]
[1747577398646,0.78739,2539.3,2539.1,0.78743]
[1747577398845,0.78736,2539.3,2539.2,1.7543]
[1747577399149,0.78731,2539.5,2539.3,0.78734]
[1747577399342,0.78731,2539.5,2539.4,1.7543]
[1747577399944,4.9557,2539.7,2539.4,1.7543]
[1747577400248,5.0464,2539.7,2539.5,0.7873]
[1747577400450,5.83366,2539.7,2539.6,1.8191]
[1747577401254,3.99506,2539.7,2539.6,1.8191]
[1747577401447,3.99506,2539.7,2539.6,3.6481]
[1747577401649,1.30792417,2540.0,2539.8,0.7872]
[1747577401849,2.09507417,2540.0,2539.9,1.8191]
[1747577402252,5.15307417,2540.0,2539.9,1.8191]
[1747577404362,0.7873,2539.5,2539.4,0.999]
[1747577404560,0.7873,2539.5,2539.4,2.7038]
[1747577405259,3.058,2539.5,2539.4,3.49113]
[1747577405558,3.058,2539.5,2539.4,2.7038]
[1747577405861,3.058,2539.5,2539.4,3.49113]
[1747577406057,3.8453,2539.5,2539.4,3.49113]
[1747577406262,0.7873,2539.5,2539.4,3.49113]
[1747577407368,3.8453,2539.5,2539.4,3.49113]
[1747577407765,3.058,2539.5,2539.4,3.49113]
[1747577407961,1.7731,2540.3,2539.4,32.14414]
[1747577408162,0.78716,2540.0,2539.9,0.78715]
[1747577408362,5.17563,2540.1,2539.4,16.51316616]
[1747577408662,0.78724,2539.8,2539.5,1.8735]
[1747577408864,0.78724,2539.8,2539.7,0.78724]
[1747577410069,0.78727,2539.6,2539.5,1.8735]
[1747577410574,0.78727,2539.6,2539.5,2.6608]
[1747577410773,1.7002,2539.7,2539.6,0.78727]
[1747577410975,3.058,2539.8,2539.7,0.78724]
[1747577411175,2.53699,2539.9,2539.8,0.78721]
[1747577411674,0.78721,2539.8,2539.7,2.58283]
[1747577411874,0.78721,2539.8,2539.7,1.7956]
[1747577412371,3.84521,2539.8,2539.7,1.7956]
[1747577412968,5.65321,2539.8,2539.7,1.7956]
[1747577414776,4.866,2539.8,2539.7,2.58284]
[1747577415076,5.65321,2539.8,2539.7,1.7956]
[1747577415268,5.65321,2539.8,2539.7,1.3207]
[1747577415464,5.65321,2539.8,2539.7,2.10794]
[1747577415465,5.66318248,2539.8,2539.7,2.10794]
[1747577415669,5.66318248,2539.8,2539.7,1.3207]
[1747577415868,4.87597248,2539.8,2539.7,2.10794]
[1747577416071,3.06797248,2539.8,2539.7,2.10794]
[1747577417778,3.85518248,2539.8,2539.7,2.10794]
[1747577418378,3.85518248,2539.8,2539.7,1.3207]
[1747577418580,0.78728,2539.6,2539.5,0.78727]
[1747577418878,0.78728,2539.6,2539.5,1.8462]
[1747577419182,3.84528,2539.6,2539.5,1.8462]
[1747577419378,3.84528,2539.6,2539.5,2.6335]
[1747577419577,3.84528,2539.6,2539.5,1.8462]
[1747577419780,3.058,2539.6,2539.5,2.6335]
[1747577420775,0.00997248,2539.8,2539.7,0.78724]
[1747577420979,0.00997248,2539.8,2539.7,26.27704]
[1747577421182,0.00997248,2539.8,2539.7,31.71736139]
[1747577421482,0.00997248,2539.8,2539.7,38.47136139]
[1747577421881,4.38899,2540.5,2540.4,0.78702]
[1747577422273,3.602,2540.5,2540.4,0.78702]
[1747577422487,7.13683684,2540.6,2540.5,0.78699]
[1747577422680,3.92903684,2540.6,2540.5,0.78699]
[1747577422881,3.92903684,2540.6,2540.4,0.787]
[1747577423082,6.98703684,2540.6,2540.5,0.78699]
[1747577423385,6.98703684,2540.6,2540.5,1.78599]
[1747577423386,3.058,2540.6,2540.5,1.78599]
[1747577424485,3.84496,2540.6,2540.5,1.78599]
[1747577424676,3.058,2540.6,2540.5,1.78599]
[1747577425190,3.84496,2540.6,2540.5,0.999]
[1747577425887,1.96757,2540.4,2539.8,3.99499]
[1747577426189,1.96772,2540.2,2539.8,3.2078]
[1747577426385,0.78727,2539.6,2539.5,11.11]
[1747577426887,0.78726,2539.7,2539.5,11.8973]
[1747577427088,1.7266,2539.6,2539.5,11.8973]
[1747577427286,1.7266,2539.6,2539.4,12.29452714]
[1747577427287,0.7873,2539.5,2539.4,1.14852714]
[1747577428187,3.8453,2539.5,2539.4,1.14852714]
[1747577428590,8.8453,2539.5,2539.4,1.14852714]
[1747577428788,0.7874,2539.2,2539.1,2.26401338]
[1747577429090,3.9952,2539.2,2539.1,2.26401338]
[1747577429692,0.78747,2539.0,2538.7,0.78755]
[1747577429987,0.78749,2538.9,2538.6,0.78757]
[1747577430186,2.6173,2538.9,2538.6,0.78756]
[1747577430689,0.78754,2538.8,2538.3,5.0489]
[1747577430890,1.8546,2538.7,2538.5,0.78759]
[1747577431090,1.8546,2538.7,2538.6,0.78758]
[1747577431290,1.8546,2538.7,2538.3,5.0489]
[1747577431491,1.8546,2538.7,2538.5,0.7876]
[1747577431693,0.7876,2538.6,2538.3,5.83655]
[1747577431888,2.64217,2538.7,2538.3,5.0489]
[1747577432096,1.8546,2538.7,2538.3,5.0489]
[1747577432391,0.7876,2538.6,2538.3,3.99545]
[1747577432591,6.7635,2539.1,2538.3,3.2078]
[1747577432592,0.78764,2538.4,2538.3,3.2078]
[1747577433289,0.78764,2538.4,2538.3,6.2658]
[1747577433996,4.40604,2538.4,2538.3,6.2658]
[1747577434895,4.40604,2538.4,2538.3,6.35798003]
[1747577435292,3.6184,2538.4,2538.3,6.35798003]
[1747577435494,1.8546,2538.5,2538.4,0.78764]
[1747577435696,0.78756,2538.7,2538.3,6.35798003]
[1747577435889,2.65306,2538.7,2538.4,2.50852]
[1747577436195,1.8655,2538.7,2538.4,1.7209]
[1747577436391,0.78761,2538.5,2538.4,1.7209]
[1747577436898,0.78764,2538.4,2538.3,6.35798003]
[1747577437097,2.62224,2538.4,2538.3,6.35798003]
[1747577438589,2.62224,2538.4,2538.3,3.15018003]
[1747577439201,2.62224,2538.4,2538.3,0.09218003]
[1747577440004,0.78789,2537.6,2537.5,4.8979]
[1747577440296,0.78789,2537.6,2537.2,3.2078]
[1747577440297,1.9698,2537.6,2537.2,3.2078]
[1747577440502,6.827,2537.5,2537.0,4.10391338]
[1747577440799,0.78799,2537.3,2537.2,3.2078]
[1747577441000,3.6192,2537.5,2537.2,3.2078]
[1747577441302,3.6192,2537.5,2537.3,0.78796]
[1747577441596,0.78786,2537.7,2537.3,1.8399]
[1747577441900,3.2078,2538.3,2537.6,5.1775]
[1747577442096,3.9955,2538.3,2538.0,0.78775]
[1747577442297,3.9955,2538.3,2538.1,1.8399]
[1747577442497,1.7234,2538.2,2538.1,1.8399]
[1747577442694,1.7234,2538.2,2537.7,4.39225]
[1747577442904,1.7234,2538.2,2537.9,0.78778]
[1747577443492,0.78774,2538.1,2538.0,1.8376]
[1747577444203,0.78774,2538.1,2538.0,4.8956]
[1747577444403,2.51112,2538.2,2538.0,4.8956]
[1747577444698,1.7234,2538.2,2538.0,5.68336]
[1747577444907,2.51111,2538.2,2538.0,4.8956]
[1747577445593,1.7234,2538.2,2538.0,5.68335]
[1747577445794,6.8147,2538.6,2538.0,4.8956]
[1747577445990,3.2078,2538.9,2538.3,3.2078]
[1747577446194,3.2078,2538.9,2538.5,0.78759]
[1747577446505,0.78755,2538.7,2538.6,1.7189]
[1747577446705,0.78761,2538.5,2538.3,3.29998003]
[1747577446899,1.8928,2538.4,2538.3,3.29998003]
[1747577447201,2.68044,2538.4,2538.3,0.09218003]
[1747577447593,1.8928,2538.4,2538.3,0.09218003]
[1747577447795,2.68044,2538.4,2538.3,0.09218003]
[1747577448000,1.8928,2538.4,2538.3,0.09218003]
[1747577448205,5.0216,2538.6,2538.3,0.09218003]
[1747577448206,3.99539,2538.6,2538.4,0.78762]
[1747577448394,3.99539,2538.6,2538.5,1.7189]
[1747577448600,0.78759,2538.6,2538.5,1.7189]
[1747577449102,0.78759,2538.6,2538.5,4.7769]
[1747577449307,2.68629,2538.6,2538.5,4.7769]
[1747577449506,1.8987,2538.6,2538.5,4.7769]
[1747577449697,1.8174,2538.7,2538.5,4.7769]
[1747577449898,0.78758,2538.6,2538.5,4.7769]
[1747577450205,2.68628,2538.6,2538.5,4.7769]
[1747577450609,2.68628,2538.6,2538.5,3.058]
[1747577451095,2.68628,2538.6,2538.2,2.5753]
[1747577451300,0.78765,2538.4,2538.3,1.87978003]
[1747577451601,0.78764,2538.5,2538.3,1.87978003]
[1747577452101,0.78764,2538.5,2538.3,5.72545003]
[1747577452313,0.78763,2538.5,2538.3,5.72545003]
[1747577452606,0.78764,2538.4,2538.3,4.93778003]
[1747577453096,0.78764,2538.4,2538.3,3.15018003]
[1747577453304,1.96929,2538.2,2537.6,7.05368]
[1747577453499,0.78786,2537.7,2537.6,6.2658]
[1747577453813,0.78786,2537.7,2537.6,3.058]
[1747577454200,6.8108,2537.9,2537.5,4.39072]
[1747577454395,3.603,2537.9,2537.5,4.39072]
[1747577454597,0.78787,2537.7,2537.5,3.6028]
[1747577454798,0.78789,2537.6,2537.5,3.6028]
[1747577455004,0.78789,2537.6,2537.1,14.2048]
[1747577455005,0.78802,2537.2,2537.1,3.2078]
[1747577455205,0.78801,2537.3,2537.1,1.7288]
[1747577455407,0.78802,2537.2,2537.1,1.7288]
[1747577455603,0.78801,2537.3,2537.1,1.7288]
[1747577455805,0.78798,2537.4,2537.1,2.51683]
[1747577456006,0.78798,2537.4,2537.2,1.7288]
[1747577456607,0.78796,2537.4,2537.2,2.51682]
[1747577456810,0.78796,2537.4,2537.2,1.7288]
[1747577457000,3.99567,2537.7,2537.4,0.78793]
[1747577457203,3.2078,2537.7,2537.6,0.78789]
[1747577457510,3.2078,2537.7,2537.5,4.2895]
[1747577457704,3.2078,2537.7,2537.5,3.5016]
[1747577457906,0.78789,2537.6,2537.5,3.5016]
[1747577458104,1.8521,2537.6,2537.1,3.2078]
[1747577458300,0.78794,2537.5,2537.2,1.8778]
[1747577458507,2.64,2537.6,2537.3,0.78798]
[1747577458707,2.64,2537.6,2537.4,3.6148]
[1747577458908,0.78792,2537.5,2537.4,3.6148]
[1747577459107,0.78792,2537.5,2537.4,6.6728]
[1747577460110,3.2078,2537.7,2537.4,6.6728]
[1747577460414,3.99567,2537.7,2537.5,0.7879]
[1747577460609,3.99567,2537.7,2537.6,1.8778]
[1747577461314,0.78787,2537.7,2537.6,1.8778]
[1747577461519,5.78769,2538.0,2537.7,0.78786]
[1747577461710,1.8141,2538.2,2537.8,1.8678]
[1747577462013,0.78772,2538.2,2538.0,0.78777]
[1747577462208,5.72908,2538.3,2538.1,2.65552]
[1747577462402,1.7336,2538.3,2538.2,5.86331]
[1747577462608,3.14206684,2538.4,2538.2,2.65551]
[1747577462820,3.92971684,2538.4,2538.3,3.6096]
[1747577463012,3.14206684,2538.4,2537.9,3.2078]
[1747577463206,3.92972684,2538.4,2538.2,0.78771]
[1747577463404,3.14206684,2538.4,2538.3,2.74765003]
[1747577464116,3.14206684,2538.4,2538.3,5.80565003]
[1747577464616,3.99539,2538.6,2538.4,0.78763]
[1747577464913,0.78761,2538.5,2538.4,1.8655]
[1747577465310,3.2078,2538.6,2538.4,1.8655]
[1747577465518,3.2078,2538.6,2538.5,0.78761]
[1747577465717,3.2078,2538.6,2538.5,4.81723921]
[1747577466017,3.2078,2539.1,2539.0,0.78744]
[1747577466218,3.2078,2539.1,2538.9,0.78747]
[1747577466416,3.99523,2539.1,2538.9,0.78747]
[1747577466617,0.78743,2539.1,2538.9,0.78747]
[1747577466917,0.7874,2539.2,2539.0,0.78744]
[1747577467211,3.14206684,2539.3,2539.2,0.7874]
[1747577468007,3.14206684,2539.3,2539.2,2.5877]
[1747577468213,3.92942684,2539.3,2539.2,1.8003]
[1747577469015,0.78736,2539.3,2539.2,1.8003]
[1747577469214,3.058,2539.3,2539.2,1.8003]
[1747577469517,3.058,2539.3,2539.2,2.58768]
[1747577470119,0.78731,2539.5,2539.3,0.78734]
[1747577470331,0.78731,2539.5,2539.2,1.8003]
[1747577470332,1.7446,2539.8,2539.6,0.78727]
[1747577470621,0.78724,2539.7,2539.5,0.78729]
[1747577470818,1.7446,2539.8,2539.4,3.2078]
[1747577471117,3.84526,2539.7,2539.5,0.78729]
[1747577471318,0.7873,2539.5,2539.4,3.2078]
[1747577471522,3.058,2539.7,2539.4,3.2078]
[1747577471914,3.84527,2539.7,2539.6,0.78727]
[1747577472116,0.78722,2539.8,2539.7,0.78724]
[1747577472322,0.7872,2539.9,2539.7,0.78724]
[1747577472919,5.67277,2540.0,2539.4,16.10014]
[1747577473121,0.98181224,2540.6,2539.7,3.2078]
[1747577473122,6.2658,2540.5,2539.7,3.2078]
[1747577473315,3.058,2540.5,2540.4,3.99482]
[1747577473719,3.058,2540.5,2540.4,30.33451219]
[1747577473917,3.058,2540.5,2540.4,4.39869219]
[1747577474112,3.058,2540.5,2540.4,0.78702]
[1747577474312,3.058,2540.5,2540.3,0.78703]
[1747577474618,3.058,2540.5,2540.4,0.78702]
[1747577474818,3.058,2540.5,2540.4,8.34617138]
[1747577475020,3.058,2540.5,2540.4,10.10287138]
[1747577476118,0.98181224,2540.6,2540.5,0.78699]
[1747577477224,4.03981224,2540.6,2540.5,0.78699]
[1747577477415,4.03981224,2540.6,2540.5,5.2488563]
[1747577478121,0.98181224,2540.6,2540.5,5.2488563]
[1747577478620,3.058,2540.9,2540.8,0.7869]
[1747577479227,0.78664,2541.7,2541.5,0.78667]
[1747577479427,1.7125,2541.7,2541.2,3.2078]
[1747577479627,0.78673,2541.4,2541.2,3.2078]
[1747577479824,1.7125,2541.3,2541.2,3.2078]
[1747577480021,0.78679,2541.2,2540.7,14.0948]
[1747577480221,0.78679,2541.2,2540.9,0.78685]
[1747577480222,1.7125,2541.1,2540.9,0.78685]
[1747577480622,2.49932,2541.1,2540.8,2.63859]
[1747577480924,1.7125,2541.1,2540.9,0.78686]
[1747577481119,5.55732,2541.1,2540.9,1.8517]
[1747577481315,0.78684,2541.0,2540.9,1.8517]
[1747577481515,1.7125,2541.0,2540.9,1.8517]
[1747577481724,2.49934,2541.0,2540.9,1.8517]
[1747577481924,1.7125,2541.0,2540.9,1.8517]
[1747577482121,4.7705,2541.0,2540.7,3.2078]
[1747577482316,0.78688,2540.9,2540.7,3.99473]
[1747577482516,2.62458,2540.9,2540.7,3.99473]
[1747577483114,4.8957,2540.9,2540.8,0.7869]
[1747577483619,4.8957,2540.9,2540.7,3.2078]
[1747577483820,0.7869,2540.8,2540.7,3.2078]
[1747577484026,2.6246,2540.8,2540.7,3.2078]
[1747577485223,5.6826,2540.8,2540.7,3.2078]
[1747577485927,5.6826,2540.8,2540.7,3.99473]
[1747577486226,5.6826,2540.8,2540.7,3.2078]
[1747577486732,0.78698,2540.6,2540.4,2.56152]
[1747577487030,0.78703,2540.4,2540.2,5.0383]
[1747577487230,4.9003,2540.5,2540.4,0.78702]
[1747577487926,0.78702,2540.4,2540.3,1.8305]
[1747577488231,1.8423,2540.4,2540.3,2.61755]
[1747577488529,3.84501,2540.5,2540.3,1.8305]
[1747577488734,3.058,2540.5,2540.3,1.8305]
[1747577489030,3.058,2540.5,2540.4,0.78702]
[1747577489827,3.84499,2540.5,2540.4,0.78702]
[1747577490026,0.78705,2540.3,2540.2,9.0638]
[1747577490219,0.78705,2540.3,2540.2,9.85089]
[1747577491030,2.51205,2540.4,2540.3,0.78705]
[1747577491229,2.51205,2540.4,2540.3,1.713]
[1747577491936,0.78705,2540.3,2540.2,3.2078]
[1747577492134,3.058,2540.3,2540.2,3.2078]
[1747577492328,3.058,2540.3,2540.2,3.99489]
[1747577492839,3.84505,2540.3,2540.2,3.2078]
[1747577493036,5.55095,2540.3,2540.2,3.2078]
[1747577493535,5.55095,2540.3,2540.2,3.99489]
[1747577493728,3.058,2540.3,2540.2,3.99489]
[1747577494437,3.84505,2540.3,2540.2,3.2078]
[1747577494628,5.58185,2540.3,2540.2,3.2078]
[1747577496136,5.58185,2540.3,2540.2,3.99489]
[1747577496437,5.58185,2540.3,2540.2,3.87609]
[1747577496632,5.58185,2540.3,2540.2,3.089]
[1747577497738,0.78717,2540.0,2539.9,0.78717]
[1747577497945,0.78717,2540.0,2539.9,2.49067]
[1747577498236,3.5652,2540.2,2539.9,0.78716]
[1747577498436,2.61203,2540.1,2539.7,5.0457]
[1747577498639,2.61203,2540.1,2540.0,0.78714]
[1747577499137,5.67003,2540.1,2540.0,0.78714]
[1747577499742,3.058,2540.1,2540.0,3.99494]
[1747577500136,1.8347,2540.2,2540.1,0.78711]
[1747577500350,2.62178,2540.2,2540.1,2.49061]
[1747577500647,0.78715,2540.0,2539.9,0.78715]
[1747577500847,2.53284,2540.1,2540.0,0.78715]
[1747577501236,0.78715,2540.0,2539.9,2.46176]
[1747577501438,0.78715,2540.0,2539.9,1.6746]
[1747577501735,0.78718,2539.9,2539.8,0.7872]
[1747577502040,2.53286,2540.0,2539.9,0.78718]
[1747577502241,5.59086,2540.0,2539.9,0.78718]
[1747577502640,4.8037,2540.0,2539.9,0.78718]
[1747577502842,5.59085,2540.0,2539.9,0.78718]
[1747577503438,3.058,2540.0,2539.8,1.6746]
[1747577503637,3.058,2540.0,2539.9,0.78718]
[1747577503945,0.78718,2539.9,2539.8,2.4618]
[1747577504141,5.52368,2539.9,2539.8,2.4618]
[1747577504341,5.52368,2539.9,2539.8,1.6746]
[1747577504744,4.7365,2539.9,2539.8,0.78721]
[1747577505344,4.9383,2540.6,2539.9,1.96788]